fUSD/lending_fUSD_20241227
["ID","MTS","AMOUNT","RATE_DAILY","PERIOD"]
[346748548,1735261834070,-500.0,0.00011997,2]
[346748549,1735261834079,-500.0,0.00011997,2]
[346748550,1735261834089,-1016.08,0.00011997,2]
[346748551,1735261834099,-584.72469053,0.00011997,2]
[346748552,1735261834109,-500.0,0.00011997,2]
[346748553,1735261834118,-500.0,0.00011997,2]
[346748554,1735261834128,-501.91534992,0.00011997,2]
[346748555,1735261834141,-500.0,0.00011997,2]
[346748556,1735261834151,-500.0,0.00011997,2]
[346748557,1735261834161,-500.0,0.00011997,2]
[346748558,1735261834171,-500.0,0.00011997,2]
[346748559,1735261834181,-500.0,0.00011997,2]
[346748560,1735261834190,-1715.16,0.00011997,2]
[346748561,1735261834201,-500.0,0.00011997,2]
[346748562,1735261834211,-1538.09,0.00011997,2]
[346748563,1735261834220,-652.48,0.00011997,2]
[346748564,1735261834230,-502.07806669,0.00011997,2]
[346748565,1735261834239,-500.0,0.00011997,2]
[346748566,1735261834249,-691.36,0.00011997,2]
[346748567,1735261834258,-500.0,0.00011997,2]
[346748568,1735261834267,-500.0,0.00011997,2]
[346748569,1735261834278,-1520.15,0.00011997,2]
[346748570,1735261834288,-557.05521782,0.00011997,2]
[346748571,1735261834299,-500.0,0.00011997,2]
[346748572,1735261834309,-500.0,0.00011997,2]
[346748573,1735261834319,-500.0,0.00011997,2]
[346748574,1735261834329,-890.48,0.00011997,2]
[346748575,1735261834339,-208.8512126,0.00011997,2]
[346748576,1735261834349,-500.0,0.00011997,2]
[346748577,1735261834359,-500.0,0.00011997,2]
[346748578,1735261834370,-1104.3,0.00011997,2]
[346748579,1735261834382,-962.67,0.00011997,2]
[346748580,1735261834392,-500.0,0.00011997,2]
[346748581,1735261834402,-500.0,0.00011997,2]
[346748582,1735261834413,-190.38369124,0.00011997,2]
[346748583,1735261834424,-229.33927114,0.00011997,2]
[346748584,1735261834434,-500.0,0.00011997,2]
[346748585,1735261834444,-500.0,0.00011997,2]
[346748586,1735261834454,-500.0,0.00011997,2]
[346748587,1735261834464,-500.0,0.00011997,2]
[346748588,1735261834474,-500.0,0.00011997,2]
[346748589,1735261834484,-500.0,0.00011997,2]
[346748590,1735261834494,-584.07860485,0.00011997,2]
[346748591,1735261834504,-500.0,0.00011997,2]
[346748592,1735261834514,-500.0,0.00011997,2]
[346748593,1735261834524,-995.19,0.00011997,2]
[346748594,1735261834534,-500.0,0.00011997,2]
[346748595,1735261834545,-500.0,0.00011997,2]
[346748596,1735261834555,-500.0,0.00011997,2]
[346748597,1735261834565,-500.0,0.00011997,2]
[346748598,1735261834576,-1036.67,0.00011997,2]
[346748599,1735261834586,-500.0,0.00011997,2]
[346748600,1735261834595,-500.0,0.00011997,2]
[346748601,1735261834605,-500.0,0.00011997,2]
[346748602,1735261834615,-500.0,0.00011997,2]
[346748603,1735261834625,-590.18,0.00011997,2]
[346748604,1735261834635,-500.0,0.00011997,2]
[346748605,1735261834645,-500.0,0.00011997,2]
[346748606,1735261834654,-742.05,0.00011997,2]
[346748607,1735261834664,-500.0,0.00011997,2]
[346748608,1735261834673,-500.0,0.00011997,2]
[346748609,1735261834682,-500.0,0.00011997,2]
[346748610,1735261834692,-500.0,0.00011997,2]
[346748611,1735261834702,-500.0,0.00011997,2]
[346748612,1735261834711,-500.0,0.00011997,2]
[346748613,1735261834721,-500.0,0.00011997,2]
[346748614,1735261834730,-500.0,0.00011997,2]
[346748615,1735261834740,-503.01373592,0.00011997,2]
[346748616,1735261834752,-938.18,0.00011997,2]
[346748617,1735261834763,-500.0,0.00011997,2]
[346748618,1735261834774,-500.0,0.00011997,2]
[346748619,1735261834783,-500.0,0.00011997,2]
[346748620,1735261834793,-150.41174869,0.00011997,2]
[346748621,1735261834803,-500.0,0.00011997,2]
[346748622,1735261834812,-500.0,0.00011997,2]
[346748623,1735261834823,-500.0,0.00011997,2]
[346748624,1735261834832,-500.0,0.00011997,2]
[346748625,1735261834843,-500.0,0.00011997,2]
[346748626,1735261834853,-500.0,0.00011997,2]
[346748627,1735261834863,-500.0,0.00011997,2]
[346748628,1735261834873,-500.0,0.00011997,2]
[346748629,1735261834884,-500.0,0.00011997,2]
[346748630,1735261834893,-509.23396711,0.00011997,2]
[346748631,1735261834903,-500.0,0.00011997,2]
[346748632,1735261834913,-500.0,0.00011997,2]
[346748633,1735261834923,-230.59711039,0.00011997,2]
[346748634,1735261834941,-6.33303553,0.00011997,2]
[346748635,1735261834951,-491.41803958,0.00011997,2]
[346748636,1735261834960,-276.08568877,0.00011997,2]
[346748644,1735261837645,-223.91431123,0.00011997,2]
[346748645,1735261837655,-500.0,0.00011997,2]
[346748646,1735261837665,-500.0,0.00011997,2]
[346748647,1735261837674,-500.0,0.00011997,2]
[346748648,1735261837684,-500.0,0.00011997,2]
[346748649,1735261837694,-500.0,0.00011997,2]
[346748650,1735261837704,-500.0,0.00011997,2]
[346748651,1735261837714,-1572.56,0.00011997,2]
[346748652,1735261837724,-500.0,0.00011997,2]
[346748653,1735261837734,-874.66,0.00011997,2]
[346748654,1735261837744,-500.0,0.00011997,2]
[346748655,1735261837756,-500.0,0.00011997,2]
[346748656,1735261837766,-1215.88,0.00011997,2]
[346748657,1735261837776,-793.44,0.00011997,2]
[346748658,1735261837785,-500.0,0.00011997,2]
[346748659,1735261837796,-500.0,0.00011997,2]
[346748660,1735261837806,-500.0,0.00011997,2]
[346748661,1735261837815,-500.0,0.00011997,2]
[346748662,1735261837826,-500.0,0.00011997,2]
[346748663,1735261837835,-500.0,0.00011997,2]
[346748664,1735261837845,-500.0,0.00011997,2]
[346748665,1735261837854,-673.22,0.00011997,2]
[346748666,1735261837864,-500.0,0.00011997,2]
[346748667,1735261837874,-500.0,0.00011997,2]
[346748668,1735261837883,-500.0,0.00011997,2]
[346748669,1735261837894,-987.09,0.00011997,2]
[346748670,1735261837903,-500.0,0.00011997,2]
[346748671,1735261837913,-1240.44,0.00011997,2]
[346748672,1735261837923,-500.0,0.00011997,2]
[346748673,1735261837933,-500.0,0.00011997,2]
[346748674,1735261837942,-500.0,0.00011997,2]
[346748675,1735261837952,-500.0,0.00011997,2]
[346748676,1735261837961,-500.52604979,0.00011997,2]
[346748677,1735261837971,-500.0,0.00011997,2]
[346748678,1735261837981,-2096.36,0.00011997,2]
[346748679,1735261837990,-500.0,0.00011997,2]
[346748680,1735261838000,-504.35139899,0.00011997,2]
[346748681,1735261838010,-500.0,0.00011997,2]
[346748682,1735261838019,-500.0,0.00011997,2]
[346748683,1735261838029,-500.0,0.00011997,2]
[346748685,1735261838038,-501.5977963,0.00011997,2]
[346748687,1735261838048,-1768.95,0.00011997,2]
[346748689,1735261838057,-500.0,0.00011997,2]
[346748691,1735261838066,-500.0,0.00011997,2]
[346748693,1735261838076,-513.55290549,0.00011997,2]
[346748695,1735261838085,-500.0,0.00011997,2]
[346748697,1735261838095,-500.0,0.00011997,2]
[346748699,1735261838104,-500.0,0.00011997,2]
[346748701,1735261838114,-500.0,0.00011997,2]
[346748703,1735261838123,-500.0,0.00011997,2]
[346748705,1735261838133,-500.0,0.00011997,2]
[346748707,1735261838143,-500.0,0.00011997,2]
[346748709,1735261838152,-500.0,0.00011997,2]
[346748711,1735261838162,-1348.96,0.00011997,2]
[346748713,1735261838171,-423.46436144,0.00011997,2]
[346748715,1735261838180,-500.0,0.00011997,2]
[346748717,1735261838190,-500.0,0.00011997,2]
[346748719,1735261838199,-500.0,0.00011997,2]
[346748721,1735261838209,-500.0,0.00011997,2]
[346748731,1735261838345,-500.0,0.00011997,2]
[346748732,1735261838381,-500.0,0.00011997,2]
[346748734,1735261838391,-500.0,0.00011997,2]
[346748736,1735261838401,-415.43050673,0.00011997,2]
[346748738,1735261838411,-702.61,0.00011997,2]
[346748740,1735261838420,-500.0,0.00011997,2]
[346748742,1735261838430,-500.0,0.00011997,2]
[346748744,1735261838440,-500.0,0.00011997,2]
[346748746,1735261838449,-500.0,0.00011997,2]
[346748748,1735261838461,-500.0,0.00011997,2]
[346748750,1735261838476,-739.04,0.00011997,2]
[346748752,1735261838487,-500.0,0.00011997,2]
[346748754,1735261838497,-500.0,0.00011997,2]
[346748756,1735261838506,-500.0,0.00011997,2]
[346748758,1735261838516,-500.0,0.00011997,2]
[346748760,1735261838525,-500.0,0.00011997,2]
[346748762,1735261838534,-500.0,0.00011997,2]
[346748764,1735261838544,-500.0,0.00011997,2]
[346748766,1735261838553,-500.0,0.00011997,2]
[346748768,1735261838562,-500.0,0.00011997,2]
[346748770,1735261838572,-500.0,0.00011997,2]
[346748772,1735261838581,-500.0,0.00011997,2]
[346748774,1735261838590,-500.0,0.00011997,2]
[346748776,1735261838599,-810.39,0.00011997,2]
[346748778,1735261838608,-6538.06,0.00011997,2]
[346748780,1735261838618,-1153.77,0.00011997,2]
[346748781,1735261838627,-500.0,0.00011997,2]
[346748784,1735261838638,-500.0,0.00011997,2]
[346748785,1735261838647,-500.0,0.00011997,2]
[346748787,1735261838657,-500.0,0.00011997,2]
[346748790,1735261838669,-500.0,0.00011997,2]
[346748792,1735261838678,-500.0,0.00011997,2]
[346748794,1735261838688,-500.0,0.00011997,2]
[346748795,1735261838697,-500.0,0.00011997,2]
[346748797,1735261838707,-500.0,0.00011997,2]
[346748800,1735261838716,-500.0,0.00011997,2]
[346748802,1735261838726,-500.0,0.00011997,2]
[346748803,1735261838735,-500.0,0.00011997,2]
[346748805,1735261838747,-524.84,0.00011997,2]
[346748807,1735261838756,-500.0,0.00011997,2]
[346748809,1735261838766,-566.8082369,0.00011997,2]
[346748811,1735261838775,-500.0,0.00011997,2]
[346748813,1735261838785,-1028.39,0.00011997,2]
[346748815,1735261838795,-500.0,0.00011997,2]
[346748817,1735261838804,-500.0,0.00011997,2]
[346748819,1735261838813,-500.0,0.00011997,2]
[346748821,1735261838826,-1022.18,0.00011997,2]
[346748823,1735261838835,-500.0,0.00011997,2]
[346748825,1735261838845,-500.0,0.00011997,2]
[346748827,1735261838855,-500.0,0.00011997,2]
[346748829,1735261838864,-500.0,0.00011997,2]
[346748831,1735261838873,-500.0,0.00011997,2]
[346748833,1735261838882,-500.0,0.00011997,2]
[346748835,1735261838892,-500.0,0.00011997,2]
[346748837,1735261838902,-3170.47,0.00011997,2]
[346748839,1735261838912,-500.0,0.00011997,2]
[346748841,1735261838922,-500.0,0.00011997,2]
[346748843,1735261838931,-500.0,0.00011997,2]
[346748846,1735261838942,-558.9796924,0.00011997,2]
[346748848,1735261838951,-500.0,0.00011997,2]
[346748850,1735261838960,-196.04037432,0.00011997,2]
[346748851,1735261838970,-1006.95,0.00011997,2]
[346748854,1735261838980,-500.0,0.00011997,2]
[346748856,1735261838990,-500.0,0.00011997,2]
[346748857,1735261838999,-500.0,0.00011997,2]
[346748860,1735261839009,-945.87,0.00011997,2]
[346748861,1735261839018,-500.0,0.00011997,2]
[346748864,1735261839029,-500.0,0.00011997,2]
[346748866,1735261839038,-500.0,0.00011997,2]
[346748868,1735261839047,-500.0,0.00011997,2]
[346748869,1735261839057,-500.0,0.00011997,2]
[346748871,1735261839067,-880.95,0.00011997,2]
[346748873,1735261839076,-500.0,0.00011997,2]
[346748876,1735261839086,-500.0,0.00011997,2]
[346748877,1735261839095,-1244.04,0.00011997,2]
[346748880,1735261839105,-500.0,0.00011997,2]
[346748881,1735261839115,-503.7,0.00011997,2]
[346748884,1735261839124,-500.0,0.00011997,2]
[346748885,1735261839134,-500.0,0.00011997,2]
[346748887,1735261839147,-500.0,0.00011997,2]
[346748889,1735261839156,-3571.71,0.00011997,2]
[346748891,1735261839167,-500.0,0.00011997,2]
[346748893,1735261839177,-500.0,0.00011997,2]
[346748895,1735261839187,-500.0,0.00011997,2]
[346748897,1735261839197,-500.0,0.00011997,2]
[346748899,1735261839207,-500.0,0.00011997,2]
[346748901,1735261839216,-500.0,0.00011997,2]
[346748903,1735261839226,-500.0,0.00011997,2]
[346748905,1735261839235,-500.0,0.00011997,2]
[346748907,1735261839245,-500.0,0.00011997,2]
[346748909,1735261839255,-568.32,0.00011997,2]
[346748911,1735261839266,-500.0,0.00011997,2]
[346748913,1735261839275,-500.0,0.00011997,2]
[346748915,1735261839286,-500.0,0.00011997,2]
[346748917,1735261839297,-500.0,0.00011997,2]
[346748919,1735261839308,-586.14,0.00011997,2]
[346748921,1735261839318,-2043.35,0.00011997,2]
[346748923,1735261839331,-385.23407872,0.00011997,2]
[346748925,1735261839342,-500.0,0.00011997,2]
[346748927,1735261839352,-500.0,0.00011997,2]
[346748929,1735261839362,-6255.01,0.00011997,2]
[346748931,1735261839371,-500.0,0.00011997,2]
[346748933,1735261839381,-500.0,0.00011997,2]
[346748935,1735261839390,-500.0,0.00011997,2]
[346748938,1735261839400,-500.0,0.00011997,2]
[346748940,1735261839410,-500.0,0.00011997,2]
[346748942,1735261839419,-500.0,0.00011997,2]
[346748945,1735261839429,-500.0,0.00011997,2]
[346748947,1735261839439,-500.0,0.00011997,2]
[346748949,1735261839449,-500.0,0.00011997,2]
[346748951,1735261839459,-773.89,0.00011997,2]
[346748953,1735261839468,-946.75,0.00011997,2]
[346748955,1735261839478,-516.26,0.00011997,2]
[346748957,1735261839487,-500.0,0.00011997,2]
[346748959,1735261839497,-500.0,0.00011997,2]
[346748961,1735261839506,-500.0,0.00011997,2]
[346748963,1735261839516,-500.0,0.00011997,2]
[346748965,1735261839525,-500.0,0.00011997,2]
[346748967,1735261839534,-2125.57,0.00011997,2]
[346748969,1735261839544,-500.0,0.00011997,2]
[346748971,1735261839553,-500.0,0.00011997,2]
[346748973,1735261839563,-500.0,0.00011997,2]
[346748975,1735261839572,-500.0,0.00011997,2]
[346748977,1735261839582,-500.0,0.00011997,2]
[346748979,1735261839591,-500.0,0.00011997,2]
[346748981,1735261839601,-500.0,0.00011997,2]
[346748983,1735261839610,-500.0,0.00011997,2]
[346748985,1735261839619,-1061.09,0.00011997,2]
[346748987,1735261839628,-500.0,0.00011997,2]
[346748989,1735261839637,-500.0,0.00011997,2]
[346748991,1735261839647,-3591.43,0.00011997,2]
[346748993,1735261839656,-500.0,0.00011997,2]
[346748995,1735261839666,-500.0,0.00011997,2]
[346748997,1735261839675,-500.0,0.00011997,2]
[346748999,1735261839684,-500.0,0.00011997,2]
[346749001,1735261839694,-785.97,0.00011997,2]
[346749003,1735261839703,-500.0,0.00011997,2]
[346749005,1735261839712,-500.0,0.00011997,2]
[346749007,1735261839721,-1826.16,0.00011997,2]
[346749009,1735261839731,-500.0,0.00011997,2]
[346749011,1735261839740,-505.12345956,0.00011997,2]
[346749013,1735261839751,-500.0,0.00011997,2]
[346749015,1735261839761,-516.98609982,0.00011997,2]
[346749017,1735261839770,-509.17829137,0.00011997,2]
[346749019,1735261839780,-500.0,0.00011997,2]
[346749021,1735261839790,-500.0,0.00011997,2]
[346749023,1735261839800,-500.0,0.00011997,2]
[346749025,1735261839809,-500.0,0.00011997,2]
[346749027,1735261839819,-500.0,0.00011997,2]
[346749029,1735261839831,-594.38,0.00011997,2]
[346749031,1735261839842,-1019.7,0.00011997,2]
[346749033,1735261839852,-626.25,0.00011997,2]
[346749035,1735261839861,-500.0,0.00011997,2]
[346749037,1735261839870,-709.58,0.00011997,2]
[346749039,1735261839880,-500.0,0.00011997,2]
[346749041,1735261839889,-528.58,0.00011997,2]
[346749043,1735261839900,-920.05,0.00011997,2]
[346749045,1735261839909,-500.0,0.00011997,2]
[346749047,1735261839919,-500.0,0.00011997,2]
[346749049,1735261839928,-1151.6,0.00011997,2]
[346749051,1735261839937,-500.0,0.00011997,2]
[346749053,1735261839947,-2618.9,0.00011997,2]
[346749055,1735261839956,-576.96,0.00011997,2]
[346749057,1735261839966,-500.0,0.00011997,2]
[346749059,1735261839975,-500.0,0.00011997,2]
[346749061,1735261839985,-500.0,0.00011997,2]
[346749063,1735261839995,-500.0,0.00011997,2]
[346749065,1735261840004,-500.0,0.00011997,2]
[346749067,1735261840013,-237.64889553,0.00011997,2]
[346749069,1735261840023,-4424.95,0.00011997,2]
[346749071,1735261840033,-500.0,0.00011997,2]
[346749073,1735261840043,-500.0,0.00011997,2]
[346749075,1735261840052,-500.0,0.00011997,2]
[346749077,1735261840062,-500.78126479,0.00011997,2]
[346749079,1735261840071,-501.02221119,0.00011997,2]
[346749081,1735261840081,-155.187616,0.00011997,2]
[346749083,1735261840091,-1246.49,0.00011997,2]
[346749085,1735261840101,-154.669237,0.00011997,2]
[346749087,1735261840111,-1049.123081,0.00011997,2]
[346749089,1735261840121,-2311.95,0.00011997,2]
[346749091,1735261840130,-500.0,0.00011997,2]
[346749092,1735261840139,-500.0,0.00011997,2]
[346749093,1735261840149,-500.0,0.00011997,2]
[346749094,1735261840158,-500.0,0.00011997,2]
[346749095,1735261840168,-500.0,0.00011997,2]
[346749096,1735261840177,-911.4,0.00011997,2]
[346749097,1735261840186,-2605.14,0.00011997,2]
[346749098,1735261840195,-500.0,0.00011997,2]
[346749099,1735261840204,-522.2448075,0.00011997,2]
[346749100,1735261840214,-656.786553,0.00011997,2]
[346749102,1735261840223,-500.0,0.00011997,2]
[346749104,1735261840232,-501.326974,0.00011997,2]
[346749106,1735261840241,-500.0,0.00011997,2]
[346749108,1735261840251,-504.02896879,0.00011997,2]
[346749110,1735261840260,-500.0,0.00011997,2]
[346749112,1735261840270,-500.0,0.00011997,2]
[346749114,1735261840280,-1461.1,0.00011997,2]
[346749129,1735261840420,-500.0,0.00011997,2]
[346749131,1735261840430,-500.0,0.00011997,2]
[346749134,1735261840441,-3371.29,0.00011997,2]
[346749136,1735261840450,-500.0,0.00011997,2]
[346749138,1735261840460,-500.0,0.00011997,2]
[346749140,1735261840470,-500.0,0.00011997,2]
[346749142,1735261840479,-1007.99,0.00011997,2]
[346749144,1735261840489,-500.0,0.00011997,2]
[346749146,1735261840498,-500.0,0.00011997,2]
[346749147,1735261840507,-1262.95,0.00011997,2]
[346749149,1735261840516,-883.27,0.00011997,2]
[346749151,1735261840526,-500.0,0.00011997,2]
[346749153,1735261840535,-500.0,0.00011997,2]
[346749155,1735261840545,-576.24,0.00011997,2]
[346749157,1735261840554,-500.0,0.00011997,2]
[346749159,1735261840564,-500.0,0.00011997,2]
[346749162,1735261840573,-503.21129238,0.00011997,2]
[346749164,1735261840583,-500.0,0.00011997,2]
[346749166,1735261840592,-1009.58,0.00011997,2]
[346749168,1735261840602,-500.0,0.00011997,2]
[346749170,1735261840611,-500.0,0.00011997,2]
[346749171,1735261840620,-4689.49,0.00011997,2]
[346749173,1735261840630,-500.0,0.00011997,2]
[346749176,1735261840641,-500.60488937,0.00011997,2]
[346749177,1735261840650,-500.0,0.00011997,2]
[346749179,1735261840660,-19277.76,0.00011997,2]
[346749182,1735261840670,-500.0,0.00011997,2]
[346749184,1735261840679,-500.0,0.00011997,2]
[346749186,1735261840689,-500.0,0.00011997,2]
[346749188,1735261840698,-500.0,0.00011997,2]
[346749190,1735261840708,-500.0,0.00011997,2]
[346749192,1735261840717,-500.0,0.00011997,2]
[346749194,1735261840727,-500.0,0.00011997,2]
[346749196,1735261840736,-500.0,0.00011997,2]
[346749198,1735261840747,-650.62,0.00011997,2]
[346749200,1735261840758,-500.0,0.00011997,2]
[346749202,1735261840767,-500.0,0.00011997,2]
[346749203,1735261840777,-500.0,0.00011997,2]
[346749206,1735261840788,-500.0,0.00011997,2]
[346749207,1735261840797,-500.0,0.00011997,2]
[346749209,1735261840808,-500.0,0.00011997,2]
[346749212,1735261840818,-500.0,0.00011997,2]
[346749214,1735261840828,-500.0,0.00011997,2]
[346749216,1735261840839,-500.0,0.00011997,2]
[346749217,1735261840849,-500.0,0.00011997,2]
[346749219,1735261840859,-1839.65,0.00011997,2]
[346749221,1735261840869,-500.0,0.00011997,2]
[346749223,1735261840879,-500.0,0.00011997,2]
[346749225,1735261840889,-500.0,0.00011997,2]
[346749228,1735261840899,-500.0,0.00011997,2]
[346749229,1735261840908,-1916.35,0.00011997,2]
[346749232,1735261840918,-500.0,0.00011997,2]
[346749233,1735261840928,-1174.3,0.00011997,2]
[346749236,1735261840939,-500.0,0.00011997,2]
[346749238,1735261840950,-515.55050481,0.00011997,2]
[346749241,1735261840973,-1824.52949519,0.00011997,2]
[346749243,1735261840983,-3637.71896128,0.00011997,2]
[346749245,1735261840994,-2125.81103872,0.00011997,2]
[346749247,1735261841003,-1933.85,0.00011997,2]
[346749249,1735261841012,-500.78862364,0.00011997,2]
[346749251,1735261841022,-500.0,0.00011997,2]
[346749253,1735261841031,-1698.24,0.00011997,2]
[346749255,1735261841040,-1250.91,0.00011997,2]
[346749257,1735261841050,-500.0,0.00011997,2]
[346749259,1735261841059,-431.17327768,0.00011997,2]
[346749261,1735261841071,-68.82672232,0.00011997,2]
[346749263,1735261841081,-669.72,0.00011997,2]
[346749265,1735261841091,-500.0,0.00011997,2]
[346749268,1735261841100,-1656.88116551,0.00011997,2]
[346749270,1735261841112,-971.47883449,0.00011997,2]
[346749272,1735261841122,-427.37789339,0.00011997,2]
[346749274,1735261841134,-72.62210661,0.00011997,2]
[346749276,1735261841145,-764.72,0.00011997,2]
[346749278,1735261841155,-500.0,0.00011997,2]
[346749280,1735261841164,-500.0,0.00011997,2]
[346749282,1735261841173,-666.27,0.00011997,2]
[346749284,1735261841182,-500.0,0.00011997,2]
[346749286,1735261841191,-2107.09676231,0.00011997,2]
[346749289,1735261841213,-378.68958323,0.00011997,2]
[346749303,1735261841330,-500.0,0.00011996,2]
[346749306,1735261841350,-2375.74365446,0.00011997,2]
[346749309,1735261841365,-500.0,0.00011997,2]
[346749312,1735261841384,-1146.99,0.00011997,2]
[346749315,1735261841404,-500.0,0.00011997,2]
[346749318,1735261841422,-500.0,0.00011997,2]
[346749321,1735261841441,-1086.43,0.00011997,2]
[346749324,1735261841460,-500.0,0.00011997,2]
[346749327,1735261841478,-500.0,0.00011997,2]
[346749330,1735261841492,-3181.08,0.00011997,2]
[346749333,1735261841511,-500.0,0.00011997,2]
[346749335,1735261841523,-500.67727125,0.00011997,2]
[346749338,1735261841540,-13918.77,0.00011997,2]
[346749340,1735261841553,-500.0,0.00011997,2]
[346749343,1735261841573,-500.0,0.00011997,2]
[346749346,1735261841587,-1968.12,0.00011997,2]
[346749348,1735261841602,-500.0,0.00011997,2]
[346749351,1735261841617,-500.0,0.00011997,2]
[346749354,1735261841632,-500.0,0.00011997,2]
[346749356,1735261841648,-500.0,0.00011997,2]
[346749359,1735261841664,-500.78449919,0.00011997,2]
[346749361,1735261841678,-619.75,0.00011997,2]
[346749364,1735261841693,-500.0,0.00011997,2]
[346749366,1735261841709,-526.85320803,0.00011997,2]
[346749369,1735261841723,-200.9392754,0.00011997,2]
[346749372,1735261841738,-500.0,0.00011997,2]
[346749374,1735261841757,-500.0,0.00011997,2]
[346749377,1735261841771,-500.0,0.00011997,2]
[346749378,1735261841787,-500.0,0.00011997,2]
[346749379,1735261841801,-500.0,0.00011997,2]
[346749380,1735261841816,-500.0,0.00011997,2]
[346749381,1735261841831,-500.0,0.00011997,2]
[346749382,1735261841846,-500.59840131,0.00011997,2]
[346749385,1735261841863,-2001.33,0.00011997,2]
[346749387,1735261841878,-501.24373702,0.00011997,2]
[346749390,1735261841892,-500.0,0.00011997,2]
[346749393,1735261841908,-505.49402361,0.00011997,2]
[346749395,1735261841923,-1721.2,0.00011997,2]
[346749397,1735261841937,-2037.51,0.00011997,2]
[346749400,1735261841953,-1296.42,0.00011997,2]
[346749403,1735261841968,-249.90593217,0.00011997,2]
[346749405,1735261841983,-537.68554297,0.00011997,2]
[346749408,1735261841997,-500.0,0.00011997,2]
[346749410,1735261842011,-500.0,0.00011997,2]
[346749413,1735261842027,-518.59309177,0.00011997,2]
[346749415,1735261842041,-440.69018846,0.00011997,2]
[346749418,1735261842056,-822.41,0.00011997,2]
[346749421,1735261842071,-500.0,0.00011997,2]
[346749423,1735261842086,-645.09,0.00011997,2]
[346749426,1735261842100,-500.60943185,0.00011997,2]
[346749429,1735261842116,-500.0,0.00011997,2]
[346749431,1735261842130,-500.0,0.00011997,2]
[346749434,1735261842146,-500.0,0.00011997,2]
[346749437,1735261842161,-315.06251748,0.00011997,2]
[346749439,1735261842176,-3077.06,0.00011997,2]
[346749442,1735261842190,-500.0,0.00011997,2]
[346749444,1735261842206,-501.1118645,0.00011997,2]
[346749447,1735261842221,-500.0,0.00011997,2]
[346749449,1735261842235,-500.0,0.00011997,2]
[346749452,1735261842251,-1623.76,0.00011997,2]
[346749455,1735261842264,-2367.43,0.00011997,2]
[346749457,1735261842280,-560.17,0.00011997,2]
[346749460,1735261842294,-500.0,0.00011997,2]
[346749463,1735261842309,-500.0,0.00011997,2]
[346749465,1735261842325,-516.58104838,0.00011997,2]
[346749469,1735261842340,-500.0,0.00011997,2]
[346749471,1735261842356,-500.0,0.00011997,2]
[346749474,1735261842370,-500.0,0.00011997,2]
[346749477,1735261842385,-1064.78,0.00011997,2]
[346749480,1735261842400,-2905.67,0.00011997,2]
[346749484,1735261842415,-500.0,0.00011997,2]
[346749487,1735261842431,-500.0,0.00011997,2]
[346749491,1735261842446,-500.0,0.00011997,2]
[346749493,1735261842462,-500.0,0.00011997,2]
[346749496,1735261842479,-500.0,0.00011997,2]
[346749498,1735261842494,-1385.52,0.00011997,2]